Cogmind - Beta 12 @@@ ROGUE MODE // 2023.04.01 @ 16:01:23 Player: wchar_t Result: Destroyed self with Grenade Launcher Performance ------------- Evolutions (0) 0 Regions Visited (2) 400 Robots Destroyed (6) 30 Value Destroyed (222) 222 Prototype IDs (0) 0 Alien Tech Used (0) 0 Bonus (0) 0 TOTAL SCORE: 652 Bonus ------- None Cogmind --------- Core Integrity 0/250 Matter 154/300 Energy 250/250 System Corruption 7% Temperature Cool (18) Movement Walking (120) Location -10/Mines Parts ------- > --- POWER (1) -------- Ion Engine > --- PROPULSION (2) --- Aluminum Leg Aluminum Leg > --- UTILITY (2) ------ Small Storage Unit Seismic Detector > --- WEAPON (2) ------- Grenade Launcher Grenade Launcher > --- INVENTORY (8) ---- Light Nuclear Core Light Treads Light Treads EM Pulse Gun Light EM Pulse Cannon Light EM Pulse Cannon Light EM Pulse Cannon Light Cannon Peak State ------------ > --- POWER ------------ Ion Engine > --- PROPULSION ------- Aluminum Leg Aluminum Leg > --- UTILITY ---------- Small Storage Unit > --- WEAPON ----------- EM Pulse Gun Light EM Pulse Cannon > --- INVENTORY -------- Light Nuclear Core Light Treads Light Treads Light EM Pulse Cannon Light EM Pulse Cannon Grenade Launcher Grenade Launcher [Rating: 8] Favorites ----------- Power Ion Engine Engine Ion Engine Propulsion Aluminum Leg Leg Aluminum Leg Utility Small Storage Unit Device Seismic Detector Storage Small Storage Unit Weapon Light EM Pulse Cannon Energy Gun EM Pulse Gun Energy Cannon Light EM Pulse Cannon Ballistic Gun Assault Rifle Launcher Grenade Launcher Build | -11 -10 -10 ------- Run | Jun Mat Min Slots Evolved . | . . . Power . | . . . Propulsion . | . . . Utility . | . . . Weapon . | . . . Parts Attached 17 | 8 5 4 Power 2 | 1 1 . Engine 2 | 1 1 . Core . | . . . Reactor . | . . . Propulsion 6 | 4 2 . Treads . | . . . Leg 6 | 4 2 . Wheel . | . . . Hover . | . . . Flight . | . . . Utility 2 | 1 . 1 Device 1 | . . 1 Storage 1 | 1 . . Processor . | . . . Hackware . | . . . Protection . | . . . Artifact . | . . . Weapon 7 | 2 2 3 Energy Gun 1 | . . 1 Energy Cannon 1 | . 1 . Ballistic Gun 3 | 2 1 . Ballistic Cannon . | . . . Launcher 2 | . . 2 Special Weapon . | . . . Impact Weapon . | . . . Slashing Weapon . | . . . Piercing Weapon . | . . . Special Melee Weapon . | . . . Unidentified Prototypes . | . . . Corrupted Parts 1 | . 1 . System Corruption 7 | . 7 . Parts Lost 4 | . 4 . Power 1 | . 1 . Propulsion 1 | . 1 . Utility . | . . . Weapon 2 | . 2 . Highest Loss Streak 4 | . 4 . To Critical Strikes . | . . . Average Slot Usage (%) 83 | . 76 86 Engine 13 | . 11 14 Leg 27 | . 26 28 Device 1 | . . 1 Storage 14 | . 14 14 Energy Gun 8 | . . 11 Energy Cannon 10 | . 5 12 Ballistic Gun 5 | . 17 . Launcher 2 | . . 3 Naked Turns . | . . . Heaviest Build 17 | 11 14 17 Greatest Support 20 | 20 20 20 Greatest Overweight (x) 3 | 3 1 . Average Overweight (x) . | . . . Largest Inventory Capacity 8 | 8 8 8 Average Capacity 7 | 7 8 8 Most Carried 8 | 5 8 8 Average Carried 7 | 2 7 7 Final Capacity 8 | 8 8 8 Final Carried 8 | 4 8 8 Class Distribution -------------------- 100% | Mutant Dominant Class ---------------- Mutant | -10/Materials Mutant | -10/Mines Resources | -11 -10 -10 ----------- Run | Jun Mat Min Matter Collected 416 | 209 169 38 Remotely . | . . . Salvage Created 332 | . 315 17 Parts 16 | . 16 . Haulers Intercepted . | . . . Recyclers Shooed . | . . . Parts Field Recycled . | . . . Retrieved Matter . | . . . Parts Self-Destructed . | . . . Prevented . | . . . Kills | -11 -10 -10 ------- Run | Jun Mat Min Combat Hostiles Destroyed 9 | . 5 4 Guns 2 | . 1 1 Cannons 4 | . 4 . AOE 3 | . . 3 Classes Destroyed 3 | . 2 1 Recycler 1 | . 1 . Grunt 5 | . 5 . Assembled 4 | . . 4 Best Kill Streak 3 | . 3 3 Combat Bots Only 3 | . 2 3 Max Kills in Single Turn 1 | . 1 1 Gunslinging . | . . . Exploded 1 | . . 1 Melee . | . . . Uniques/NPCs Destroyed . | . . . Combat | -11 -10 -10 -------- Run | Jun Mat Min Damage Taken 840 | . 710 130 Core 250 | . 206 44 Absorbed by Shields . | . . . Core Remaining (%) 100 | 100 . . Volleys Fired 39 | . 28 11 Largest 2 | . 2 2 Hottest 96 | . 76 96 Shots Fired 63 | . 46 17 Gun 37 | . 35 2 Cannon 15 | . 11 4 Launcher 11 | . . 11 Special . | . . . Kinetic 35 | . 35 . Thermal . | . . . Explosive 11 | . . 11 Electromagnetic 17 | . 11 6 Robot Hit Streak 11 | . 11 3 Robot Miss Streak 2 | . 2 2 Penetration Max . | . . . Secondary Targets . | . . . Shots Hit Robots 37 | . 32 5 Core Hits 19 | . 12 7 Critical Kills . | . . . Critical Parts Destroyed 1 | . 1 . Critical Strikes 1 | . 1 . Destroy 1 | . 1 . Melee Attacks . | . . . Impact . | . . . Slashing . | . . . Piercing . | . . . Sneak Attacks . | . . . Combat Hostiles . | . . . Follow-up Attacks . | . . . Damage Inflicted 906 | . 528 378 Guns 306 | . 294 12 Cannons 231 | . 212 19 Explosions 347 | . . 347 Melee . | . . . Ramming 22 | . 22 . Kinetic 294 | . 294 . Thermal . | . . . Explosive 347 | . . 347 Electromagnetic 243 | . 212 31 Impact . | . . . Slashing . | . . . Piercing . | . . . Highest Corruption 7 | . 7 7 Average Corruption 7 | . 7 7 Corruption Purged . | . . . Corruption Blocked . | . . . Effects 25 | . 2 23 Message Errors 9 | . . 9 Matter Fused 5 | . . 5 Heat Flow Errors 4 | . 1 3 Energy Discharges 1 | . 1 . Data Loss (minor) 4 | . . 4 Misfires 2 | . . 2 Overload Shots . | . . . Overflow Damage 8 | . . 8 Projectiles . | . . . Explosions 8 | . . 8 Melee . | . . . Knockbacks . | . . . Impact . | . . . Kinetic . | . . . Secondary . | . . . Self-Inflicted Damage 41 | . . 41 Shots 3 | . . 3 Rammed . | . . . Targets Rammed 10 | . 10 . Kicked 10 | . 10 . Crushed . | . . . Highest Temperature 269 | . 140 269 Average Temperature 58 | . 22 92 Received Heat Transfer 393 | . 393 . Siege Activations . | . . . Robots Corrupted . | . . . Combat Hostiles . | . . . Parts Fried . | . . . Impact Corruptions . | . . . Robots Melted . | . . . Combat Hostiles . | . . . Parts Melted . | . . . Heat Transferred . | . . . Parts Sabotaged . | . . . Parts Stolen . | . . . Parts Stripped . | . . . Power Chain Reactions . | . . . Missiles Intercepted . | . . . Alert | -11 -10 -10 ------- Run | Jun Mat Min Peak Influence 153 | . 153 59 Initial 59 | . . 59 Average 47 | . 62 43 Maximum Alert Level . | . . . Low Security (%) 100 | 100 100 100 Level 1 . | . . . Level 2 . | . . . Level 3 . | . . . Level 4 . | . . . Level 5 . | . . . High Security . | . . . Max Security . | . . . Squads Dispatched 2 | . 2 . Investigation . | . . . Extermination . | . . . Reinforcement 2 | . 2 . Assault . | . . . Garrison . | . . . Intercept . | . . . Searches Triggered . | . . . Construction Impeded . | . . . Haulers Reinforced . | . . . Active Scanning Responses . | . . . Cargo Convoy Interrupts . | . . . Stealth | -11 -10 -10 --------- Run | Jun Mat Min Distress Signals 1 | . 1 . Communications Jammed . | . . . Distress Signals . | . . . Times Spotted 16 | . 11 5 Peak Tracking Total 6 | . 6 3 Tactical Retreats . | . . . Traps | -11 -10 -10 ------- Run | Jun Mat Min Traps Triggered . | . . . Indirectly . | . . . Trap Hack Attempts . | . . . Triggered . | . . . Disarmed . | . . . Reprogrammed . | . . . Reused . | . . . Traps Extracted . | . . . Installed . | . . . Triggered . | . . . Machines | -11 -10 -10 ---------- Run | Jun Mat Min Machines Disabled 2 | . 1 1 Max in Single Turn 1 | . 1 1 Machines Repaired . | . . . Machines Sabotaged . | . . . Overloaded Fab Kills . | . . . Hacking | -11 -10 -10 --------- Run | Jun Mat Min Machines Accessed 3 | . 2 1 Terminals 3 | . 2 1 Fabricators . | . . . Repair Stations . | . . . Recycling Units . | . . . Scanalyzers . | . . . Garrison Access . | . . . Total Hacks 6 | . 3 3 Successful 1 | . 1 . Failed 5 | . 2 3 Catastrophic 1 | . . 1 Database Lockouts . | . . . Manual 1 | . 1 . Terminals 6 | . 3 3 Fabricators . | . . . Repair Stations . | . . . Recycling Units . | . . . Scanalyzers . | . . . Garrison Access . | . . . Terminal Hacks 1 | . 1 . Branch Access Points 1 | . 1 . Fabricator Hacks . | . . . Repair Station Hacks . | . . . Recycling Unit Hacks . | . . . Scanalyzer . | . . . Garrison Access Hacks . | . . . Unauthorized Hacks . | . . . Terminals . | . . . Fabricators . | . . . Repair Stations . | . . . Recycling Units . | . . . Scanalyzers . | . . . Garrison Access . | . . . Data Cores Recovered . | . . . Used . | . . . Hacking Detections 2 | . 1 1 Full Trace Events 1 | . 1 . Feedback Events . | . . . Feedback Blocked . | . . . Robot Schematics Acquired . | . . . Robots Built . | . . . Authchips . | . . . Time . | . . . Total Robot Build Rating . | . . . Part Schematics Acquired . | . . . Parts Built . | . . . Authchips . | . . . Time . | . . . Total Part Build Rating . | . . . Parts Repaired . | . . . Time . | . . . Parts Recycled . | . . . Recycled Matter . | . . . Retrieved Matter . | . . . Retrieved Components . | . . . Parts Scanalyzed . | . . . Part Schematics Acquired . | . . . Parts Damaged . | . . . Bothacking | -11 -10 -10 ------------ Run | Jun Mat Min Used RIF Installer . | . . . Robots Hacked . | . . . Non-combat . | . . . Combat . | . . . Robot Hacks Applied . | . . . Relay Couplers Released . | . . . Fabnet Peak Effective % . | . . . Robots Rewired . | . . . Allies Hacked . | . . . Hacks Repelled . | . . . Allies | -11 -10 -10 -------- Run | Jun Mat Min Total Allies . | . . . Largest Group . | . . . Highest-Rated Group . | . . . Highest-Rated Ally . | . . . Total Orders . | . . . Ally Attacks . | . . . Total Damage . | . . . Kills . | . . . Allies Corrupted . | . . . Allies Melted . | . . . Intel | -11 -10 -10 ------- Run | Jun Mat Min Robot Analysis Total . | . . . Derelict Logs Recovered 1 | . . 1 Drone Launches . | . . . Drone Recoveries . | . . . Exploration | -11 -10 -10 ------------- Run | Jun Mat Min Turns Passed 1099 | 54 338 707 Spaces Moved 552 | 41 193 318 Core 20 | 20 . . Treads . | . . . Legs 532 | 21 193 318 Wheels . | . . . Hover . | . . . Flight . | . . . Fastest Speed 50 | 50 120 120 Average Speed 118 | 95 120 120 Slowest Speed 200 | 200 190 120 Overloaded Moves . | . . . Propulsion Burnouts . | . . . Robots Hopped . | . . . Cave-ins Triggered . | . . . Exploration Rate (%) 38 | 4 47 63 Regions Visited 2 Branch Regions 1 Pre-discovered Areas 1 | . . 1 Known Exits Taken 1 | . 1 . Unknown Exits Taken 1 | 1 . . Scrap Searched 1 | . . 1 Spaces Dug . | . . . Terrain Destroyed 66 | . . 66 Melee . | . . . Projectile . | . . . AOE 66 | . . 66 Terrain Rammed . | . . . Walls Destroyed . | . . . Machines Disabled . | . . . Actions | -11 -10 -10 --------- Run | Jun Mat Min Total 932 | 54 250 628 Wait 301 | . 7 294 Move 550 | 40 192 318 Hop . | . . . Pick Up 11 | 4 6 1 Fast Attach 9 | 6 2 1 Attach 5 | 2 2 1 Detach 2 | 2 . . Swap 3 | . 1 2 Drop 2 | . 2 . Fire 39 | . 28 11 Melee . | . . . Ram . | . . . Kick 10 | . 10 . Crush . | . . . Escape Stasis . | . . . Rewire . | . . . Trap . | . . . Miscellaneous . | . . . Route ------- -11/Junkyard -10/Materials -10/Mines History --------- Turn | Location | Event 2 | -11/Junkyard | Discovered new exit (range 16) 55 | -11/Junkyard | Entered Materials 74 | -10/Materials | Identified exit to Mines 258 | -10/Materials | Core integrity fell below 50% 304 | -10/Materials | Lost 4 parts (1p1n2w) 312 | -10/Materials | Build established: Mutant 315 | -10/Materials | Core integrity fell below 20% 393 | -10/Materials | Entered Mines 394 | -10/Mines | Assembled infested the area 394 | -10/Mines | Met a Derelict bent on vengeance 902 | -10/Mines | Learned location of Storage (-8) 1100 | -10/Mines | Destroyed self with Grenade Launcher Last Messages --------------- 01030_ K-01 Serf collects debris. 01058_ System corrupted: FCS attempts to trigger Grenade Launcher. 01058_ System corrupted: Grenade Launcher misfires. 01066_ Destroyed Asb. Hover Unit. 01066_ as-34982 destroyed. 01066_ Destroyed Asb. Hover Unit. 01069_ as-65199 destroyed. 01072_ The unstable cave ceiling collapses. 01082_ U-05 Engineer lays Concrete. 01086_ The unstable cave ceiling collapses. 01087_ U-05 Engineer lays Concrete. 01088_ as-01664 destroyed. 01089_ System corrupted: Heat flow error (+181). 01090_ U-05 Engineer lays Concrete. 01091_ The unstable cave ceiling collapses. 01091_ U-05 Engineer lays Concrete. 01094_ U-05 Engineer builds a Wall. 01095_ The unstable cave ceiling collapses. 01097_ U-05 Engineer lays Concrete. 01099_ U-05 Engineer builds a Wall. Map ----- +----------------------------------------------------+ | """ ####### "" ####??????????????????????????? | | ##?????????????????????????????? | | """ ##??????????????????????????????? | | """ ######## ##??????????????????????##??????? | | """ #??????# #????????????????????? ##?????? | | #??????# ###????????????????????? ##????? | | """ #??????# ####??????????????????? #????? | | """ #????### #??????????????????? ?????? | | """ #???## ##%#?????????????????? ??????? | | #??## ## ###############????% ???????? | | #??# ## ## #??? %????????? | | #??# ## ## #??? #?????????? | | #######??## ###%## """ """ #??% #??????????? | | ?????????## ! ## ## """ """ ###* #??????????? | | ?????????# =%*## """ """ =%%%=#??????????? | | ????????## = #### % ###=!#??????????? | | ????????# #?# # # % ????????? | | ????????# # #?# =*# ####???????? | | ???????## #############T##%u #?????????? | | ?????### #### !* #?????????? | | ????## # #? =**% ##?????????? | | ##### #*u%%==##??????????? | | ## =%!!|=!#???????????? | | ! =!=%!=%#???????????? | | =%*=%!=!*#???????????? | | ## @ !%[!*!%!=%#???????????? | | ## # # |%%|%|%%=**????????? | | # ## # #?=!%!###??????????? | | ## ### # # # %=!=??#????????????? | | #### #?# # ###### a |#%=!#?????????????? | | #??# #?# # ##???? ?*#?????????????? | | #??# #?# ### #????? r =??????????????? | | ???# #?# #?# ##???? # ## #?????????????? | | ???# #?# #### ##???? ##?? #?????????????? | | ???# #?# #????? ???? #????????????? | | ???# #?# ######????#????? #????????????? | | ?### #?# #???????????????## #????????????? | | ## #?# #?????????????????#=%! ??????????????? | | # #?# #??????????????????*!%????????????????? | | # ### #?????????????????????????????????????? | | ## #?????????????????????????????????????? | | ?## ## ###?????????????????????????????????????? | | ?## ## #???????????????????????????????????????? | | ## ### #???????????????????????????????????????? | | ##?# #???????????????????????????????????????? | | ##??# #???????????????????????????????????????? | | ##???# #???????????????????????????????????????? | | ##??## #???####????????????????????????????????? | | #?## #### ##???????????????????????????????? | | #?# #???????????????????????????????? | +----------------------------------------------------+ Best States ------------- Heat Dissipation 25 Energy Generation 10 Energy Capacity 250 Matter Stores 300 Matter Capacity 300 Sight Range 16 Terrain Scan Density 10 Evasion (%) 55 Item Schematics ----------------- None Robot Schematics ------------------ None Fabricated ------------ Nothing Alien Tech Used ----------------- None Achievements -------------- None Challenges ------------ None Game ------ Seed GrenadeProcessingRipper Manual? 0 Play Time 00:09:35 Cumulative 202.6 hours Start 2023.04.01 @ 15:54:53 End 2023.04.01 @ 16:01:23 Sessions 1 Manual Loads 0 Difficulty Rogue Special Mode None Game No. 86 Rogue 70 Adventurer 8 Explorer 8 Win Type - Total 16 Types 10/0/3/1/1/1/0/0/0 Lore% 85 Gallery% 80 Achievement% 73 Wizard Run 0 Options --------- ASCII 1 Keyboard 1 Movement Vi Keybinds 0 Fullscreen 1 Font 18/CogWide Map View 76x50 Tactical HUD 1 Map Filters NONE Filters NONE Steam X RUN: 4c9d2ce8-9154-4e44-a2a8-4f691ad064da